bitfinex/quotes_BTCUSD_20220213
["timestamp","ask_amount","ask_price","bid_price","bid_amount"]
[1644750009413,0.5,42639.0,42637.0,0.22620738]
[1644750010015,0.6,42639.0,42638.0,0.003065]
[1644750010215,0.158668,42640.0,42638.0,0.003065]
[1644750010520,0.158668,42640.0,42637.0,0.22620738]
[1644750010913,0.38741127,42642.0,42640.0,0.841332]
[1644750011214,0.13761358,42642.0,42640.0,0.841332]
[1644750011428,0.058666,42642.0,42641.0,0.003065]
[1644750011621,0.3184205,42644.0,42641.0,0.003065]
[1644750011622,0.1,42644.0,42641.0,0.26164164]
[1644750011822,0.31301078,42647.0,42640.0,0.841332]
[1644750012024,0.70302011,42645.0,42640.0,0.841332]
[1644750012256,0.55,42645.0,42640.0,0.841332]
[1644750012459,0.55,42645.0,42642.0,0.22132599]
[1644750012659,0.05,42645.0,42642.0,0.22132599]
[1644750012858,0.05,42645.0,42641.0,0.07150761]
[1644750013063,0.058659,42646.0,42641.0,0.07150761]
[1644750013259,0.32707823,42646.0,42641.0,0.07150761]
[1644750013659,0.42707823,42646.0,42641.0,0.07150761]
[1644750013962,0.42707823,42646.0,42641.0,0.07105954]
[1644750014161,0.42707823,42646.0,42641.0,0.07150761]
[1644750014560,0.42707823,42646.0,42644.0,0.22927238]
[1644750014760,0.208659,42646.0,42644.0,0.22927238]
[1644750014959,0.208659,42646.0,42644.0,0.22620738]
[1644750014960,0.058668,42645.0,42644.0,0.22620738]
[1644750015919,0.117324,42646.0,42644.0,0.22620738]
[1644750016112,0.058659,42646.0,42645.0,0.003065]
[1644750019861,0.058659,42646.0,42645.0,0.11616869]
[1644750020162,0.108659,42646.0,42645.0,0.22927238]
[1644750022464,0.15428303,42646.0,42645.0,0.22927238]
[1644750023417,0.108659,42646.0,42645.0,0.22927238]
[1644750025815,0.15026339,42646.0,42645.0,0.22927238]
[1644750028964,0.108659,42646.0,42645.0,0.22927238]
[1644750032523,1.05,42645.0,42643.0,0.00044805]
[1644750032725,1.05,42645.0,42640.0,0.841332]
[1644750032726,1.05,42643.0,42640.0,0.841332]
[1644750032925,1.05,42643.0,42640.0,0.81538236]
[1644750032926,0.108688,42641.0,42640.0,0.81538236]
[1644750033131,1.42833822,42642.0,42625.0,0.00025463]
[1644750033132,0.117382,42635.0,42625.0,0.00025463]
[1644750033325,0.19286213,42634.0,42622.0,0.00025463]
[1644750033525,0.24168547,42625.0,42620.0,0.06621055]
[1644750033729,0.29168547,42625.0,42620.0,0.06621055]
[1644750034126,0.05,42625.0,42620.0,0.06621055]
[1644750034524,0.15,42627.0,42620.0,0.06650461]
[1644750034764,0.058692,42623.0,42620.0,0.06650461]
[1644750035065,0.15970958,42632.0,42621.0,0.26647895]
[1644750035262,0.05,42632.0,42623.0,0.176076]
[1644750035464,0.05,42633.0,42623.0,0.176076]
[1644750035863,0.05,42633.0,42629.0,0.0695518]
[1644750036064,0.117371,42631.0,42629.0,0.0695518]
[1644750036266,0.058686,42630.0,42629.0,0.0695518]
[1644750036463,0.058686,42630.0,42625.0,0.00044851]
[1644750036863,0.058686,42630.0,42623.0,0.176076]
[1644750037063,0.058686,42630.0,42625.0,0.00044851]
[1644750037463,0.058683,42630.0,42625.0,0.00044851]
[1644750037864,0.15974222,42636.0,42626.0,0.07152292]
[1644750038065,0.05,42636.0,42633.0,0.06636647]
[1644750038265,0.29309981,42636.0,42625.0,0.00044817]
[1644750038515,0.22975275,42633.0,42625.0,0.00044817]
[1644750038715,0.45706115,42632.0,42625.0,0.00044817]
[1644750038916,0.55706115,42632.0,42625.0,0.00044817]
[1644750039111,0.117369,42632.0,42625.0,0.00044817]
[1644750039315,0.117369,42632.0,42628.0,0.25365503]
[1644750039513,0.1,42633.0,42629.0,0.08563139]
[1644750039813,0.208684,42633.0,42629.0,0.08563139]
[1644750040615,0.108684,42633.0,42629.0,0.08607956]
[1644750040815,0.22735092,42632.0,42629.0,0.00044817]
[1644750041014,0.28686537,42631.0,42629.0,0.00044817]
[1644750041216,0.39555237,42631.0,42629.0,0.00044817]
[1644750041422,0.31483156,42630.0,42629.0,0.00044817]
[1644750041716,0.31483156,42630.0,42623.0,0.176076]
[1644750041717,0.05869,42629.0,42623.0,0.176076]
[1644750041919,0.058687,42628.0,42627.0,0.0697505]
[1644750044669,0.058687,42628.0,42625.0,0.00044819]
[1644750045272,0.058687,42628.0,42623.0,0.176076]
[1644750045471,0.34672235,42628.0,42624.0,0.0004482]
[1644750045919,0.058691,42627.0,42624.0,0.0004482]
[1644750046620,0.058691,42627.0,42623.0,0.1765242]
[1644750046814,0.04923563,42625.0,42623.0,0.1765242]
[1644750047716,0.058691,42627.0,42623.0,0.176076]
[1644750047915,0.03465236,42625.0,42623.0,0.176076]
[1644750048317,0.44070337,42624.0,42623.0,0.176076]
[1644750048520,0.49070337,42624.0,42623.0,0.176076]
[1644750048718,0.30005145,42624.0,42623.0,0.176076]
[1644750049662,1.55305145,42624.0,42623.0,0.176076]
[1644750050066,1.71279367,42624.0,42623.0,0.176076]
[1644750050268,0.45979367,42624.0,42623.0,0.176076]
[1644750050667,1.55305145,42624.0,42623.0,0.176076]
[1644750051266,1.05,42623.0,42622.0,0.00025377]
[1644750051466,1.05,42623.0,42621.0,0.00044822]
[1644750051467,1.311705,42622.0,42621.0,0.00044822]
[1644750051667,1.70587437,42622.0,42621.0,0.00044822]
[1644750051870,2.01561659,42622.0,42621.0,0.00044822]
[1644750052266,0.76261659,42622.0,42621.0,0.00044822]
[1644750052468,1.04979365,42622.0,42607.0,0.00025377]
[1644750052667,0.058701,42618.0,42606.0,0.16805377]
[1644750053424,0.226105,42619.0,42606.0,0.16805377]
[1644750053425,0.23847291,42615.0,42606.0,0.11805377]
[1644750053617,0.23847291,42615.0,42606.0,0.00025377]
[1644750053818,0.058709,42614.0,42610.0,0.00046225]
[1644750054216,0.23847291,42615.0,42610.0,0.00046225]
[1644750054817,0.117417,42613.0,42606.0,0.00025377]
[1644750055018,0.117417,42613.0,42610.0,0.00046224]
[1644750055221,0.117434,42612.0,42610.0,0.00046224]
[1644750055418,0.29676336,42611.0,42610.0,0.00046224]
[1644750055818,0.34676336,42611.0,42610.0,0.00046224]
[1644750056017,0.05,42611.0,42605.0,0.00025377]
[1644750056217,0.1,42611.0,42608.0,0.00044681]
[1644750057271,0.05,42612.0,42603.0,0.00025377]
[1644750057471,0.05,42612.0,42607.0,0.00044682]
[1644750058472,0.30719814,42611.0,42603.0,0.00025377]
[1644750058772,0.058711,42609.0,42607.0,0.00044682]
[1644750059173,0.108711,42609.0,42607.0,0.00044682]
[1644750059772,0.108711,42609.0,42602.0,0.00025377]
[1644750059973,0.108711,42609.0,42606.0,0.00044787]
[1644750060773,0.108711,42609.0,42602.0,0.00025377]
[1644750061019,0.108711,42609.0,42605.0,0.00044787]
[1644750061419,0.05,42608.0,42605.0,0.00044787]
[1644750061620,0.20665324,42608.0,42605.0,0.00044787]
[1644750061919,0.32408724,42608.0,42605.0,0.00044787]
[1644750062131,0.33483251,42607.0,42602.0,0.00025377]
[1644750062420,0.03403755,42606.0,42604.0,0.00044788]
[1644750062621,0.28798389,42605.0,42604.0,0.00044788]
[1644750062821,0.33798389,42605.0,42604.0,0.00044788]
[1644750063021,0.03403755,42606.0,42604.0,0.00044788]
[1644750063022,0.058714,42606.0,42604.0,0.00044788]
[1644750063223,0.058714,42606.0,42602.0,0.00025377]
[1644750063224,0.10558226,42606.0,42602.0,0.00025377]
[1644750063424,0.058714,42606.0,42602.0,0.0004479]
[1644750063620,0.058714,42606.0,42602.0,0.00070167]
[1644750064021,0.108714,42606.0,42602.0,0.00070167]
[1644750064421,0.108714,42606.0,42602.0,0.00025377]
[1644750064679,0.108714,42606.0,42602.0,0.0004479]
[1644750064875,0.108714,42606.0,42602.0,0.00070167]
[1644750065077,0.14222664,42606.0,42602.0,0.00070167]
[1644750065277,0.108714,42606.0,42602.0,0.00070167]
[1644750065477,0.04288046,42605.0,42602.0,0.00070167]
[1644750065677,0.04288046,42605.0,42602.0,0.00025377]
[1644750065878,0.14504332,42606.0,42602.0,0.0004479]
[1644750066077,0.04359233,42605.0,42602.0,0.00070167]
[1644750066279,0.04522452,42605.0,42602.0,0.00070167]
[1644750066478,0.04522452,42605.0,42601.0,0.01]
[1644750066479,0.89522452,42605.0,42601.0,0.00570167]
[1644750066679,0.28430768,42604.0,42601.0,0.00570167]
[1644750066878,0.5777273,42604.0,42601.0,0.00570167]
[1644750067080,0.6277273,42604.0,42601.0,0.00570167]
[1644750067286,0.04600735,42603.0,42601.0,0.00570167]
[1644750067483,0.3573864,42602.0,42601.0,0.00570167]
[1644750067680,0.04644039,42600.0,42591.0,0.01]
[1644750067881,0.058737,42598.0,42591.0,0.01025377]
[1644750068080,0.28686778,42596.0,42591.0,0.01025377]
[1644750068280,0.50742318,42595.0,42591.0,0.01]
[1644750068524,0.26532338,42592.0,42591.0,0.01]
[1644750068721,0.31532338,42592.0,42591.0,0.01]
[1644750068924,0.41532338,42592.0,42591.0,0.01]
[1644750069521,0.47406038,42592.0,42591.0,0.01]
[1644750070720,0.77394187,42592.0,42591.0,0.01]
[1644750071120,1.72706038,42592.0,42591.0,0.01]
[1644750071320,0.47406038,42592.0,42591.0,0.01]
[1644750071521,0.8004716,42592.0,42591.0,0.01]
[1644750072182,2.0534716,42592.0,42591.0,0.01]
[1644750072589,1.1,42591.0,42589.0,0.00048746]
[1644750072786,1.60060434,42590.0,42583.0,0.00195014]
[1644750072986,0.058752,42588.0,42581.0,0.21]
[1644750073185,0.32081445,42586.0,42581.0,0.21]
[1644750073386,0.42081445,42586.0,42581.0,0.21]
[1644750073585,0.47081445,42586.0,42581.0,0.21]
[1644750073985,0.19668379,42585.0,42581.0,0.21]
[1644750074287,0.058751,42584.0,42581.0,0.21]
[1644750074686,0.108751,42584.0,42581.0,0.21]
[1644750075586,0.167502,42584.0,42581.0,0.21]
[1644750075786,0.167502,42584.0,42581.0,0.205]
[1644750076541,0.29350461,42583.0,42581.0,0.205]
[1644750076737,0.24964703,42582.0,42581.0,0.205]
[1644750077137,0.34964703,42582.0,42581.0,0.205]
[1644750077339,0.75928088,42582.0,42581.0,0.205]
[1644750077943,0.44964703,42582.0,42581.0,0.205]
[1644750080171,0.76477087,42582.0,42581.0,0.205]
[1644750080376,2.01777087,42582.0,42581.0,0.205]
[1644750080973,2.51777087,42582.0,42581.0,0.205]
[1644750081773,0.94964703,42582.0,42581.0,0.205]
[1644750082772,1.25883999,42582.0,42581.0,0.205]
[1644750082984,1.05,42581.0,42580.0,0.00025331]
[1644750083175,1.47623161,42581.0,42573.0,0.00025331]
[1644750083432,1.68769915,42580.0,42572.0,0.01067096]
[1644750083627,0.117524,42576.0,42572.0,0.01067096]
[1644750083926,0.24732837,42573.0,42572.0,0.01275449]
[1644750084125,0.34732837,42573.0,42572.0,0.01250118]
[1644750084325,0.44732837,42573.0,42572.0,0.01250118]
[1644750085328,0.50609037,42573.0,42572.0,0.01250118]
[1644750085729,0.59173037,42573.0,42572.0,0.01250118]
[1644750087278,1.00609037,42573.0,42572.0,0.01250118]
[1644750087976,1.30336432,42573.0,42572.0,0.01041765]
[1644750092122,1.05603595,42573.0,42572.0,0.01041765]
[1644750092522,0.758762,42573.0,42572.0,0.01041765]
[1644750092726,0.76595618,42573.0,42572.0,0.01041765]
[1644750093022,2.01895618,42573.0,42572.0,0.01041765]
[1644750093223,2.20973279,42573.0,42572.0,0.01041765]
[1644750095072,2.20973279,42573.0,42572.0,0.00833412]
[1644750095271,2.70973279,42573.0,42572.0,0.00833412]
[1644750095675,1.45673279,42573.0,42572.0,0.00833412]
[1644750096080,1.45673279,42573.0,42572.0,0.00625059]
[1644750097273,1.45673279,42573.0,42572.0,0.005644]
[1644750097474,0.701172,42572.0,42571.0,0.00684331]
[1644750097675,1.201172,42572.0,42571.0,0.00659]
[1644750097974,1.301172,42572.0,42571.0,0.00659]
[1644750098432,0.601172,42572.0,42571.0,0.00659]
[1644750102772,0.6028442,42572.0,42571.0,0.00659]
[1644750109026,1.8558442,42572.0,42571.0,0.00659]
[1644750109228,1.8558442,42572.0,42571.0,0.00867353]
[1644750109425,0.6028442,42572.0,42571.0,0.00867353]
[1644750110272,0.6028442,42572.0,42571.0,0.01075706]
[1644750111273,0.6028442,42572.0,42571.0,0.01284059]
[1644750112376,0.6028442,42572.0,42571.0,0.01492412]
[1644750113430,0.6028442,42572.0,42571.0,0.01700765]
[1644750114230,0.6028442,42572.0,42571.0,0.20903117]
[1644750114231,0.5028442,42572.0,42571.0,0.20903117]
[1644750114428,0.5028442,42572.0,42571.0,0.5111147]
[1644750114626,0.0028442,42572.0,42571.0,0.5111147]
[1644750114827,0.00539268,42573.0,42572.0,0.53039661]
[1644750115029,0.00539268,42573.0,42572.0,0.83039661]
[1644750115426,0.00539268,42573.0,42572.0,0.83248014]
[1644750116432,0.00539268,42573.0,42572.0,0.83456367]
[1644750117474,0.00539268,42573.0,42572.0,0.8366472]
[1644750118575,0.00539268,42573.0,42572.0,0.83873073]
[1644750119577,0.00539268,42573.0,42572.0,0.84081426]
[1644750120379,0.176231,42589.0,42572.0,0.84081426]
[1644750120380,0.27740186,42589.0,42572.0,0.84081426]
[1644750120579,0.27740186,42589.0,42576.0,0.05]
[1644750120580,0.5,42587.0,42576.0,0.05]
[1644750120780,0.7,42587.0,42577.0,0.28508771]
[1644750121028,0.7,42587.0,42577.0,0.28534102]
[1644750121227,0.7,42587.0,42579.0,0.00044749]
[1644750121228,0.058742,42586.0,42579.0,0.00044749]
[1644750121434,0.058742,42586.0,42584.0,0.21578029]
[1644750122230,0.00557069,42588.0,42584.0,0.21578029]
[1644750122435,0.00557069,42588.0,42584.0,0.46605473]
[1644750122636,0.00557069,42588.0,42584.0,0.21786382]
[1644750123033,0.00557069,42588.0,42584.0,0.00208353]
[1644750123232,0.06431569,42588.0,42584.0,0.00208353]
[1644750123434,0.058744,42587.0,42584.0,0.00208353]
[1644750123632,0.058744,42587.0,42584.0,0.00461097]
[1644750124032,0.00557069,42586.0,42584.0,0.00461097]
[1644750124675,0.00557069,42586.0,42585.0,0.06303421]
[1644750125075,0.00557069,42586.0,42584.0,0.00625059]
[1644750125573,0.00557069,42586.0,42584.0,0.00833412]
[1644750126176,0.00557069,42586.0,42585.0,0.08905346]
[1644750126376,0.00557069,42586.0,42584.0,0.00833412]
[1644750126577,0.00557069,42586.0,42584.0,0.01041765]
[1644750127577,0.00557069,42586.0,42585.0,0.07710771]
[1644750127978,0.00557069,42586.0,42585.0,0.06710771]
[1644750128436,0.00723326,42586.0,42585.0,0.0693849]
[1644750128631,0.00166257,42586.0,42585.0,0.07146843]
[1644750129831,0.00166257,42586.0,42585.0,0.07355196]
[1644750130832,0.00166257,42586.0,42585.0,0.07563549]
[1644750131534,0.00166257,42586.0,42585.0,0.33432618]
[1644750131733,0.00723326,42586.0,42585.0,0.07771902]
[1644750132775,0.00723326,42586.0,42585.0,0.07980255]
[1644750133875,0.00723326,42586.0,42585.0,0.08188608]
[1644750134076,0.00723326,42586.0,42585.0,0.3396354]
[1644750134376,0.00723326,42586.0,42585.0,0.08188608]
[1644750134579,0.00723326,42586.0,42585.0,0.35755609]
[1644750135379,0.00723326,42586.0,42585.0,0.08188608]
[1644750135922,0.00723326,42586.0,42585.0,0.34710256]
[1644750135923,0.00514973,42586.0,42585.0,0.34710256]
[1644750136123,0.00514973,42586.0,42585.0,0.08188608]
[1644750136526,0.00514973,42586.0,42585.0,0.36004518]
[1644750136924,0.00514973,42586.0,42585.0,0.08188608]
[1644750137328,0.00514973,42586.0,42585.0,0.33986567]
[1644750137725,0.00514973,42586.0,42585.0,0.34305159]
[1644750137924,0.00696344,42586.0,42585.0,0.34305159]
[1644750138127,0.00696344,42586.0,42585.0,0.34013751]
[1644750138726,0.00696344,42586.0,42585.0,0.08188608]
[1644750138929,0.00196344,42586.0,42585.0,0.34525624]
[1644750143444,0.15989815,42596.0,42586.0,1.05]
[1644750143445,0.21862715,42596.0,42586.0,1.05]
[1644750143637,0.21862715,42596.0,42588.0,0.05]
[1644750143638,0.15989815,42596.0,42588.0,0.05]
[1644750143836,0.03509523,42599.0,42589.0,0.30134867]
[1644750144239,0.03509523,42599.0,42598.0,0.24264468]
[1644750144439,0.03509523,42599.0,42589.0,0.30134867]
[1644750144636,0.03437277,42599.0,42589.0,0.30134867]
[1644750144836,0.2,42600.0,42589.0,0.30134867]
[1644750144837,0.29638169,42600.0,42589.0,0.30134867]
[1644750145139,0.20211706,42600.0,42589.0,0.30134867]
[1644750145335,0.20013229,42600.0,42593.0,0.26936091]
[1644750145536,0.04821557,42599.0,42595.0,0.06310954]
[1644750145738,0.158723,42600.0,42595.0,0.06310954]
[1644750146437,0.158723,42600.0,42595.0,0.06358306]
[1644750147472,0.20062718,42600.0,42595.0,0.06310954]
[1644750147675,0.20285568,42600.0,42595.0,0.06358306]
[1644750147871,0.158723,42600.0,42595.0,0.06358306]
[1644750148071,0.00211157,42596.0,42595.0,0.06358306]
[1644750148271,0.00211157,42596.0,42595.0,0.32489083]
[1644750148674,0.00211157,42596.0,42595.0,0.32441731]
[1644750151324,0.00211157,42596.0,42595.0,0.06310954]
[1644750152727,0.00211157,42596.0,42595.0,0.32314661]
[1644750152931,0.00211157,42596.0,42595.0,0.06310954]
[1644750153126,0.00418878,42596.0,42595.0,0.06310954]
[1644750154128,0.00418878,42596.0,42595.0,0.32098954]
[1644750154329,0.00418878,42596.0,42595.0,0.06310954]
[1644750156779,0.00210525,42596.0,42595.0,0.06310954]
[1644750157979,0.00423217,42596.0,42595.0,0.06310954]
[1644750162176,0.06296317,42596.0,42594.0,0.00428533]
[1644750163083,0.30295489,42596.0,42594.0,0.00428533]
[1644750163282,0.50295489,42596.0,42594.0,0.00428533]
[1644750165276,0.30233736,42595.0,42594.0,0.00428533]
[1644750165780,0.40233736,42595.0,42594.0,0.00428533]
[1644750166829,0.56223551,42595.0,42594.0,0.00428533]
[1644750167129,0.25989815,42595.0,42594.0,0.00428533]
[1644750167329,0.15989815,42595.0,42594.0,0.00428533]
[1644750167530,0.65989815,42595.0,42594.0,0.00428533]
[1644750167728,0.5,42595.0,42594.0,0.00428533]
[1644750167929,0.75989815,42595.0,42594.0,0.00428533]
[1644750168128,0.75989815,42595.0,42594.0,0.00227758]
[1644750168129,0.60213196,42595.0,42594.0,0.00227758]
[1644750168335,0.60213196,42595.0,42594.0,0.00170751]
[1644750168336,0.76203011,42595.0,42594.0,0.00170751]
[1644750168927,0.26203011,42595.0,42594.0,0.00170751]
[1644750169329,0.00213196,42595.0,42594.0,0.00170751]
[1644750170576,0.27178028,42595.0,42594.0,0.00170751]
[1644750171579,0.52806024,42595.0,42594.0,0.00170751]
[1644750171781,0.62806024,42595.0,42594.0,0.00170751]
[1644750172780,0.62806024,42595.0,42594.0,0.00346493]
[1644750173180,0.37178028,42595.0,42594.0,0.00346493]
[1644750173430,0.27178028,42595.0,42594.0,0.00346493]
[1644750173630,0.37178028,42595.0,42594.0,0.00346493]
[1644750174727,0.27178028,42595.0,42594.0,0.00346493]
[1644750175428,0.77178028,42595.0,42594.0,0.00346493]
[1644750175627,0.87178028,42595.0,42594.0,0.00346493]
[1644750175826,1.03167843,42595.0,42594.0,0.00346493]
[1644750177776,1.0295949,42595.0,42594.0,0.00170751]
[1644750182732,1.03203786,42595.0,42594.0,0.00170751]
[1644750184533,0.53203786,42595.0,42594.0,0.00170751]
[1644750184980,0.37213971,42595.0,42594.0,0.00170751]
[1644750185580,0.87213971,42595.0,42594.0,0.00170751]
[1644750185982,1.03203786,42595.0,42594.0,0.00170751]
[1644750190732,1.03203786,42595.0,42589.0,0.08640935]
[1644750190931,1.03203786,42595.0,42592.0,0.00045557]
[1644750191932,1.03203786,42595.0,42582.0,0.36192509]
[1644750191933,0.058742,42593.0,42582.0,0.36192509]
[1644750192181,0.058742,42593.0,42591.0,0.00045558]
[1644750193079,0.058742,42592.0,42586.0,0.06519714]
[1644750193280,0.058741,42591.0,42590.0,0.00045559]
[1644750194283,0.058741,42591.0,42585.0,0.01041765]
[1644750194579,0.058741,42591.0,42588.0,0.0004556]
[1644750195383,0.058741,42591.0,42586.0,0.07578784]
[1644750195926,0.058741,42591.0,42587.0,0.00045561]
[1644750196726,0.058741,42591.0,42586.0,0.07578784]
[1644750196934,0.058741,42591.0,42587.0,0.00045561]
[1644750197730,0.06400427,42591.0,42587.0,0.00045561]
[1644750198029,0.06400427,42591.0,42587.0,0.00045562]
[1644750198828,0.06192074,42591.0,42587.0,0.00045562]
[1644750199031,0.18889263,42590.0,42585.0,0.01041765]
[1644750199231,0.18889263,42590.0,42587.0,0.00045562]
[1644750199232,0.33523391,42589.0,42587.0,0.00045562]
[1644750199436,0.15,42589.0,42587.0,0.00045562]
[1644750199682,0.22802,42589.0,42587.0,0.00045562]
[1644750200080,0.38791815,42589.0,42587.0,0.00045562]
[1644750200280,0.38791815,42589.0,42585.0,0.01041765]
[1644750200281,1.226266,42588.0,42585.0,0.01041765]
[1644750200481,0.608756,42587.0,42586.0,0.00045562]
[1644750200681,0.76865415,42587.0,42586.0,0.00045562]
[1644750200880,2.17165415,42587.0,42586.0,0.00045562]
[1644750201381,0.91865415,42587.0,42586.0,0.00045562]
[1644750201581,1.22871928,42587.0,42585.0,0.01041765]
[1644750201781,0.34100698,42586.0,42585.0,0.01041765]
[1644750201986,1.00090513,42586.0,42585.0,0.01041765]
[1644750202181,1.10090513,42586.0,42585.0,0.01041765]
[1644750202583,1.60090513,42586.0,42585.0,0.01041765]
[1644750202781,1.65090513,42586.0,42585.0,0.01041765]
[1644750204830,1.35989815,42586.0,42585.0,0.01041765]
[1644750205730,1.2,42586.0,42585.0,0.01041765]
[1644750206129,1.35993173,42586.0,42585.0,0.01041765]
[1644750206730,1.35993173,42586.0,42584.0,0.00625059]
[1644750206731,2.303,42585.0,42584.0,0.00625059]
[1644750206932,2.953,42585.0,42584.0,0.00625059]
[1644750207183,3.61293173,42585.0,42584.0,0.00625059]
[1644750207379,3.66293173,42585.0,42584.0,0.00625059]
[1644750207780,3.87272647,42585.0,42584.0,0.00625059]
[1644750208580,1.253,42583.0,42582.0,0.00048409]
[1644750208781,0.117522,42581.0,42572.0,0.53064888]
[1644750208980,0.11752,42578.0,42574.0,0.00193671]
[1644750209181,0.55,42580.0,42574.0,0.00193671]
[1644750209381,0.7,42580.0,42574.0,0.00193671]
[1644750209685,0.26048392,42576.0,42574.0,0.00193671]
[1644750209881,0.55,42575.0,42573.0,0.00025227]
[1644750210079,0.55,42575.0,42572.0,0.53064888]
[1644750210283,0.65,42575.0,42572.0,0.53064888]
[1644750210682,0.80993173,42575.0,42572.0,0.53064888]
[1644750210936,0.5,42573.0,42572.0,0.53064888]
[1644750211131,0.55,42573.0,42572.0,0.53039661]
[1644750211331,0.55,42573.0,42572.0,0.52539661]
[1644750212936,0.5,42573.0,42572.0,0.52539661]
[1644750216483,0.5,42573.0,42572.0,0.52039661]
[1644750218189,0.5054027,42573.0,42572.0,0.52272805]
[1644750219344,0.0054027,42573.0,42572.0,0.52272805]
[1644750220644,0.0054027,42573.0,42572.0,0.7799444]
[1644750221045,0.5,42577.0,42574.0,0.01080539]
[1644750221946,0.1599311,42580.0,42579.0,0.21063686]
[1644750222187,0.1599311,42580.0,42579.0,0.48070576]
[1644750222385,0.058747,42583.0,42579.0,0.21063686]
[1644750222690,0.5,42582.0,42579.0,0.21063686]
[1644750224390,0.058742,42586.0,42579.0,0.21063686]
[1644750224691,0.558738,42591.0,42579.0,0.21063686]
[1644750224891,0.5,42589.0,42579.0,0.21063686]
[1644750225089,0.55,42589.0,42579.0,0.21063686]
[1644750225294,0.65,42589.0,42579.0,0.21063686]
[1644750225491,0.55,42589.0,42579.0,0.21063686]
[1644750225690,0.55,42589.0,42586.0,0.08596293]
[1644750226933,0.25703296,42591.0,42586.0,0.08596293]
[1644750226934,0.058738,42591.0,42587.0,0.24943864]
[1644750227135,0.1599311,42593.0,42587.0,0.24943864]
[1644750227333,0.5,42592.0,42587.0,0.3]
[1644750227531,0.5,42592.0,42586.0,0.08596293]
[1644750228134,0.1599311,42594.0,42586.0,0.08596293]
[1644750228135,0.1599311,42595.0,42586.0,0.08596293]
[1644750228335,0.5,42594.0,42586.0,0.08596293]
[1644750228934,0.5,42594.0,42593.0,0.08454396]
[1644750229138,0.1,42595.0,42593.0,0.08454396]
[1644750229336,0.2599311,42595.0,42593.0,0.08454396]
[1644750229534,0.05,42595.0,42593.0,0.08454396]
[1644750229783,0.05,42596.0,42593.0,0.08454396]
[1644750229983,0.05,42596.0,42592.0,0.24179244]
[1644750230986,0.065,42597.0,42592.0,0.24179244]
[1644750231387,0.015,42597.0,42592.0,0.24179244]
[1644750231986,0.04393421,42596.0,42585.0,0.00048467]
[1644750232189,0.058731,42595.0,42585.0,0.00048467]
[1644750232388,0.108731,42595.0,42585.0,0.00048467]
[1644750232687,0.108731,42595.0,42587.0,0.00622658]
[1644750232688,0.00267376,42593.0,42587.0,0.00622658]
[1644750233289,0.00267376,42593.0,42589.0,0.08998335]
[1644750234131,0.00267376,42593.0,42588.0,0.25134379]
[1644750234333,0.00267376,42593.0,42587.0,0.21450867]
[1644750235933,0.06141476,42593.0,42587.0,0.00622658]
[1644750236133,0.16141476,42593.0,42587.0,0.00622658]
[1644750236532,0.058742,42591.0,42587.0,0.00622658]
[1644750237581,0.09382124,42591.0,42590.0,0.0013348]
[1644750238481,0.058742,42591.0,42590.0,0.0013348]
[1644750242637,0.06141227,42591.0,42590.0,0.00664731]
[1644750244708,0.117505,42589.0,42575.0,0.00025227]
[1644750244905,0.117508,42587.0,42585.0,0.00044577]
[1644750245104,0.217508,42587.0,42585.0,0.00044577]
[1644750245503,0.48889741,42586.0,42585.0,0.00044577]
[1644750245904,0.058753,42583.0,42575.0,0.00025227]
[1644750246110,0.058753,42583.0,42574.0,0.01105766]
[1644750246111,0.358755,42582.0,42574.0,0.01105766]
[1644750246307,0.358755,42582.0,42574.0,0.01260936]
[1644750246308,1.253,42581.0,42574.0,0.01260936]
[1644750246508,0.117534,42580.0,42574.0,0.01260936]
[1644750246805,0.3274651,42580.0,42574.0,0.01260936]
[1644750247005,0.117541,42579.0,42574.0,0.01260936]
[1644750247306,0.058771,42578.0,42575.0,0.00045096]
[1644750247503,0.108771,42578.0,42575.0,0.00070323]
[1644750248440,0.108771,42578.0,42575.0,0.20475484]
[1644750248936,0.108771,42578.0,42576.0,0.08494402]
[1644750249537,0.108771,42578.0,42575.0,0.20475484]
[1644750249736,0.108771,42578.0,42575.0,0.00069764]
[1644750249937,0.108771,42578.0,42575.0,0.00044537]
[1644750250537,0.108771,42578.0,42575.0,0.0754135]
[1644750250736,0.108771,42578.0,42575.0,0.07496813]
[1644750252583,0.00236864,42577.0,42575.0,0.07496813]
[1644750252883,0.00236864,42577.0,42574.0,0.01150303]
[1644750253083,0.00236864,42577.0,42574.0,0.01080539]
[1644750253283,0.00236864,42577.0,42574.0,0.01125114]
[1644750254285,0.00236864,42577.0,42574.0,0.01080539]
[1644750254686,0.00236864,42577.0,42574.0,0.01105766]
[1644750255487,0.00236864,42577.0,42574.0,0.07473918]
[1644750255789,0.00236864,42577.0,42574.0,0.07448691]
[1644750256036,0.00236864,42577.0,42574.0,0.01105766]
[1644750256834,0.00236864,42577.0,42574.0,0.01080539]
[1644750257035,0.00236864,42577.0,42574.0,0.01105766]
[1644750257433,0.00236864,42577.0,42575.0,0.00334078]
[1644750260091,0.00236864,42577.0,42576.0,0.07086944]
[1644750263192,0.00236864,42577.0,42576.0,0.06586944]
[1644750264352,0.00236864,42577.0,42575.0,0.00334078]
[1644750264938,0.03793421,42577.0,42575.0,0.00334078]
[1644750265139,0.13793421,42577.0,42575.0,0.00334078]
[1644750265340,0.10236864,42577.0,42575.0,0.00334078]
[1644750265541,0.00236864,42577.0,42575.0,0.00334078]
[1644750265739,0.05,42576.0,42575.0,0.00334078]
[1644750266238,0.11113364,42577.0,42575.0,0.00334078]
[1644750266638,0.80472405,42576.0,42575.0,0.00334078]
[1644750266845,0.90472405,42576.0,42575.0,0.00334078]
[1644750267292,0.90472405,42576.0,42574.0,0.01105766]
[1644750267493,0.34146394,42575.0,42574.0,0.01080539]
[1644750267693,0.89146394,42575.0,42574.0,0.01080539]
[1644750267893,1.15139504,42575.0,42574.0,0.01080539]
[1644750269998,0.8599311,42575.0,42574.0,0.01080539]
[1644750270398,0.7,42575.0,42574.0,0.01080539]
[1644750271033,0.2,42575.0,42574.0,0.01080539]
[1644750271435,0.1,42575.0,42574.0,0.01080539]
[1644750271639,0.05,42575.0,42574.0,0.01080539]
[1644750271837,0.10503682,42577.0,42574.0,0.01080539]
[1644750272137,0.05503682,42577.0,42574.0,0.01080539]
[1644750272336,0.05,42576.0,42574.0,0.01080539]
[1644750272534,0.05,42575.0,42574.0,0.01080539]
[1644750272834,0.05554215,42575.0,42574.0,0.01080539]
[1644750274033,0.00554215,42575.0,42574.0,0.01080539]
[1644750274692,0.29990991,42575.0,42574.0,0.01080539]